fUSD/lending_fUSD_20241203
["ID","MTS","AMOUNT","RATE_DAILY","PERIOD"]
[344017004,1733207674975,-500.0,0.00025,120]
[344017005,1733207675016,-595.85,0.00025,120]
[344017006,1733207675057,-1357.79,0.00025,120]
[344017007,1733207675097,-595.85,0.00025,120]
[344017008,1733207675137,-500.0,0.00025,120]
[344017009,1733207675177,-595.85,0.00025,120]
[344017010,1733207675217,-500.0,0.00025,120]
[344017011,1733207675264,-2196.29,0.00025,120]
[344017012,1733207675301,-500.0,0.00025,120]
[344017013,1733207675341,-2829.25,0.00025,120]
[344017014,1733207675378,-595.85,0.00025,120]
[344017015,1733207675415,-595.85,0.00025,120]
[344017016,1733207675453,-596.04053661,0.00025,120]
[344017017,1733207675490,-6775.59,0.00025,120]
[344017018,1733207675528,-512.37,0.00025,120]
[344017019,1733207675566,-2164.53,0.00025,120]
[344017020,1733207675603,-500.0,0.00025,120]
[344017021,1733207675640,-619.82,0.00025,120]
[344017022,1733207675678,-1614.91,0.00025,120]
[344017023,1733207675716,-1073.53,0.00025,120]
[344017024,1733207675760,-500.0,0.00025,120]
[344017025,1733207675798,-2694.52,0.00025,120]
[344017026,1733207675839,-1364.41,0.00025,120]
[344017027,1733207675876,-656.24,0.00025,120]
[344017028,1733207675914,-504.06705947,0.00025,120]
[344017029,1733207675953,-500.0,0.00025,120]
[344017030,1733207675992,-500.0,0.00025,120]
[344017031,1733207676035,-1032.33,0.00025,120]
[344017032,1733207676076,-507.38380687,0.00025,120]
[344017033,1733207676116,-2338.87,0.00025,120]
[344017034,1733207676158,-500.0,0.00025,120]
[344017035,1733207676196,-200.0,0.00025012,120]
[344017036,1733207676237,-500.0,0.00025267,120]
[344017037,1733207676279,-1027.74,0.00025273,30]
[344017038,1733207676317,-500.0,0.00025273,120]
[344017039,1733207676355,-500.0,0.00025273,120]
[344017040,1733207676394,-181.27997232,0.00025273,120]
[344017041,1733207676431,-500.0,0.00025273,120]
[344017042,1733207676469,-500.0,0.00025273,120]
[344017043,1733207676510,-500.0,0.00025273,120]
[344017044,1733207676547,-500.0,0.00025273,120]
[344017045,1733207676585,-500.0,0.00025273,120]
[344017046,1733207676624,-500.0,0.00025273,120]
[344017047,1733207676661,-500.0,0.00025273,120]
[344017048,1733207676702,-500.0,0.00025273,120]
[344017049,1733207676738,-500.0,0.00025273,120]
[344017050,1733207676778,-500.0,0.00025273,120]
[344017051,1733207676816,-558.61221974,0.00025273,120]
[344017052,1733207676852,-399.58031708,0.00025273,120]
[344017053,1733207676890,-500.0,0.00025273,120]
[344017054,1733207676927,-500.0,0.00025273,120]
[344017055,1733207676964,-500.0,0.00025273,120]
[344017056,1733207677003,-500.0,0.00025273,120]
[344017057,1733207677043,-500.0,0.00025273,120]
[344017058,1733207677082,-500.0,0.00025273,120]
[344017059,1733207677119,-500.0,0.00025273,120]
[344017060,1733207677158,-500.0,0.00025273,120]
[344017061,1733207677196,-500.0,0.00025273,120]
[344017062,1733207677236,-500.0,0.00025273,120]
[344017063,1733207677542,-500.0,0.00025273,120]
[344017064,1733207677584,-500.0,0.00025273,120]
[344017065,1733207677626,-615.39465824,0.00025273,120]
[344017066,1733207677668,-500.0,0.00025273,120]
[344017067,1733207677707,-500.0,0.00025273,120]
[344017068,1733207677746,-500.0,0.00025273,120]
[344017069,1733207677787,-500.0,0.00025273,120]
[344017070,1733207677826,-500.0,0.00025273,120]
[344017071,1733207677864,-500.0,0.00025273,120]
[344017072,1733207677902,-500.0,0.00025273,120]
[344017073,1733207677939,-500.0,0.00025273,120]
[344017074,1733207677976,-1394.04,0.00025273,120]
[344017075,1733207678013,-500.0,0.00025273,120]
[344017076,1733207678054,-500.0,0.00025273,120]
[344017077,1733207678091,-305.96823869,0.00025273,120]
[344017078,1733207678133,-924.08,0.00025273,120]
[344017079,1733207678171,-500.0,0.00025273,120]
[344017080,1733207678208,-1804.12,0.00025273,120]
[344017081,1733207678245,-500.0,0.00025273,120]
[344017082,1733207678282,-500.0,0.00025273,120]
[344017083,1733207678321,-500.0,0.00025273,120]
[344017084,1733207678358,-500.0,0.00025273,120]
[344017085,1733207678395,-764.19,0.00025273,120]
[344017086,1733207678432,-500.0,0.00025273,120]
[344017087,1733207678467,-500.0,0.00025273,120]
[344017088,1733207678508,-1321.61,0.00025273,120]
[344017089,1733207678546,-1088.27,0.00025273,120]
[344017090,1733207678584,-500.0,0.00025273,120]
[344017091,1733207678624,-850.93,0.00025273,120]
[344017092,1733207678661,-500.0,0.00025273,120]
[344017093,1733207678700,-500.0,0.00025273,120]
[344017094,1733207678736,-2200.34,0.00025273,120]
[344017095,1733207678774,-1340.54,0.00025273,120]
[344017096,1733207678812,-500.0,0.00025273,120]
[344017097,1733207678850,-500.0,0.00025273,120]
[344017098,1733207678889,-500.0,0.00025273,120]
[344017099,1733207678927,-515.91,0.00025273,120]
[344017100,1733207678965,-1098.46,0.00025273,120]
[344017101,1733207679003,-821.42,0.00025273,120]
[344017102,1733207679044,-500.0,0.00025273,120]
[344017103,1733207679083,-225.58755812,0.00025273,120]
[344017104,1733207679122,-500.0,0.00025273,120]
[344017105,1733207679159,-664.51,0.00025273,120]
[344017106,1733207679197,-500.0,0.00025273,120]
[344017107,1733207679236,-627.31,0.00025273,120]
[344017108,1733207679276,-630.01,0.00025273,120]
[344017109,1733207679315,-500.0,0.00025273,120]
[344017110,1733207679354,-153.93885745,0.00025273,120]
[344017111,1733207679391,-850.4,0.00025273,120]
[344017112,1733207679429,-509.01946253,0.00025273,120]
[344017113,1733207679466,-734.36,0.00025273,120]
[344017114,1733207679504,-500.0,0.00025273,120]
[344017115,1733207679543,-500.0,0.00025273,120]
[344017116,1733207679580,-1802.26,0.00025273,120]
[344017117,1733207679621,-500.0,0.00025273,120]
[344017118,1733207679666,-2267.15,0.00025273,120]
[344017119,1733207679709,-1819.07,0.00025273,120]
[344017120,1733207679747,-500.0,0.00025273,120]
[344017121,1733207679788,-500.0,0.00025273,120]
[344017122,1733207679826,-878.56,0.00025273,120]
[344017123,1733207679865,-500.0,0.00025273,120]
[344017124,1733207679903,-536.48,0.00025273,120]
[344017125,1733207679940,-500.0,0.00025273,120]
[344017126,1733207679979,-1079.67,0.00025273,120]
[344017127,1733207680017,-500.0,0.00025273,120]
[344017128,1733207680057,-500.0,0.00025273,120]
[344017129,1733207680096,-627.51,0.00025273,120]
[344017130,1733207680136,-508.64051498,0.00025273,120]
[344017131,1733207680175,-500.0,0.00025273,120]
[344017132,1733207680215,-500.0,0.00025273,120]
[344017133,1733207680254,-1022.05,0.00025273,120]
[344017134,1733207680294,-1541.41,0.00025273,120]
[344017135,1733207680332,-684.34,0.00025273,120]
[344017136,1733207680369,-500.0,0.00025273,120]
[344017137,1733207680407,-1661.82,0.00025273,120]
[344017138,1733207680445,-500.0,0.00025273,120]
[344017139,1733207680485,-500.0,0.00025273,120]
[344017140,1733207680529,-500.0,0.00025273,120]
[344017141,1733207680571,-547.01599727,0.00025273,120]
[344017142,1733207680611,-500.0,0.00025273,120]
[344017143,1733207680651,-500.0,0.00025273,120]
[344017144,1733207680692,-1040.72,0.00025273,120]
[344017145,1733207680732,-315.12950776,0.00025273,120]
[344017146,1733207680773,-1026.67,0.00025273,120]
[344017147,1733207680814,-500.0,0.00025273,120]
[344017148,1733207680855,-500.0,0.00025273,120]
[344017149,1733207680894,-694.62,0.00025273,120]
[344017150,1733207680933,-500.0,0.00025273,120]
[344017151,1733207680972,-646.98,0.00025273,120]
[344017152,1733207681016,-1428.8,0.00025273,120]
[344017153,1733207681059,-673.67,0.00025273,120]
[344017154,1733207681101,-500.0,0.00025273,120]
[344017155,1733207681140,-500.0,0.00025273,120]
[344017156,1733207681181,-500.0,0.00025273,120]
[344017157,1733207681462,-500.0,0.00025273,120]
[344017158,1733207681502,-500.0,0.00025273,120]
[344017159,1733207681543,-500.0,0.00025273,120]
[344017160,1733207681583,-659.08,0.00025273,120]
[344017161,1733207681623,-1491.15,0.00025273,120]
[344017162,1733207681664,-500.0,0.00025273,120]
[344017163,1733207681708,-500.0,0.00025273,120]
[344017164,1733207681747,-500.0,0.00025273,120]
[344017165,1733207681787,-2500.0,0.00025273,120]
[344017166,1733207681826,-500.0,0.00025273,120]
[344017167,1733207681865,-554.20622778,0.00025273,120]
[344017168,1733207681903,-500.0,0.00025273,120]
[344017169,1733207681941,-500.0,0.00025273,120]
[344017170,1733207681980,-500.0,0.00025273,120]
[344017171,1733207682019,-1278.19,0.00025273,120]
[344017172,1733207682059,-822.2,0.00025273,120]
[344017173,1733207682098,-500.0,0.00025273,120]
[344017174,1733207682136,-500.0,0.00025273,120]
[344017175,1733207682176,-532.65,0.00025273,120]
[344017176,1733207682218,-500.0,0.00025273,120]
[344017177,1733207682256,-500.0,0.00025273,120]
[344017178,1733207682296,-500.0,0.00025273,120]
[344017179,1733207682338,-1076.68,0.00025273,120]
[344017180,1733207682375,-1265.81,0.00025273,120]
[344017181,1733207682414,-500.0,0.00025273,120]
[344017182,1733207682451,-1577.25,0.00025273,120]
[344017183,1733207682491,-500.0,0.00025273,120]
[344017184,1733207682529,-622.02371094,0.00025273,120]
[344017185,1733207682567,-712.66,0.00025273,120]
[344017186,1733207682607,-500.0,0.00025273,120]
[344017187,1733207682645,-1369.16,0.00025273,120]
[344017188,1733207682685,-500.0,0.00025273,120]
[344017189,1733207682724,-1232.27,0.00025273,120]
[344017190,1733207682767,-790.13,0.00025273,120]
[344017191,1733207682805,-244.09414044,0.00025273,120]
[344017192,1733207682848,-500.0,0.00025273,120]
[344017193,1733207682887,-500.0,0.00025273,120]
[344017194,1733207682924,-1258.95,0.00025273,120]
[344017195,1733207682962,-512.5545533,0.00025273,120]
[344017196,1733207683000,-500.0,0.00025273,120]
[344017197,1733207683040,-713.88,0.00025273,120]
[344017198,1733207683084,-603.4,0.00025273,120]
[344017199,1733207683127,-500.0,0.00025273,120]
[344017200,1733207683168,-1132.33,0.00025273,90]
[344017201,1733207683209,-500.0,0.00025273,120]
[344017202,1733207683250,-2236.55,0.00025273,120]
[344017203,1733207683292,-501.52,0.00025273,120]
[344017204,1733207683333,-1292.82,0.00025273,120]
[344017205,1733207683371,-500.0,0.00025273,120]
[344017206,1733207683414,-936.9,0.00025273,120]
[344017207,1733207683457,-500.0,0.00025273,120]
[344017208,1733207683501,-982.36,0.00025273,120]
[344017209,1733207683547,-926.05,0.00025273,120]
[344017210,1733207683593,-1032.38,0.00025273,120]
[344017211,1733207683637,-500.64,0.00025273,120]
[344017212,1733207683675,-500.0,0.00025273,120]
[344017213,1733207683712,-500.0,0.00025273,120]
[344017214,1733207683749,-1907.6,0.00025273,120]
[344017215,1733207683787,-500.0,0.00025273,120]
[344017216,1733207683825,-289.44616981,0.00025273,120]
[344017217,1733207683862,-500.0,0.00025273,120]
[344017218,1733207683899,-500.0,0.00025273,120]
[344017219,1733207683937,-500.0,0.00025273,120]
[344017220,1733207683975,-2177.62,0.00025273,120]
[344017221,1733207684015,-1539.88,0.00025273,120]
[344017222,1733207684054,-820.1,0.00025273,120]
[344017223,1733207684094,-500.0,0.00025273,120]
[344017224,1733207684133,-725.92,0.00025273,120]
[344017225,1733207684172,-500.0,0.00025273,120]
[344017226,1733207684211,-500.0,0.00025273,120]
[344017227,1733207684252,-1354.99,0.00025273,120]
[344017228,1733207684293,-500.0,0.00025273,120]
[344017229,1733207684331,-500.0,0.00025273,120]
[344017230,1733207684369,-587.53,0.00025273,120]
[344017231,1733207684412,-500.0,0.00025273,120]
[344017232,1733207684452,-666.26,0.00025273,120]
[344017233,1733207684492,-500.0,0.00025273,120]
[344017234,1733207684534,-1091.32,0.00025273,120]
[344017235,1733207684581,-2010.05,0.00025273,120]
[344017236,1733207684624,-1188.44,0.00025273,120]
[344017237,1733207684666,-524.63,0.00025273,120]
[344017238,1733207684710,-616.18,0.00025273,120]
[344017239,1733207684751,-500.0,0.00025273,120]
[344017240,1733207684797,-1734.32,0.00025273,120]
[344017241,1733207684837,-766.88,0.00025273,120]
[344017242,1733207684877,-577.76,0.00025273,120]
[344017243,1733207684916,-500.0,0.00025273,120]
[344017244,1733207684956,-500.0,0.00025273,120]
[344017245,1733207684997,-1161.79,0.00025273,120]
[344017246,1733207685041,-500.0,0.00025273,30]
[344017247,1733207685083,-500.0,0.00025273,120]
[344017248,1733207685124,-581.2,0.00025273,120]
[344017249,1733207685164,-500.0,0.00025273,120]
[344017250,1733207685493,-500.0,0.00025273,120]
[344017251,1733207685535,-500.0,0.00025273,120]
[344017252,1733207685574,-500.0,0.00025273,120]
[344017253,1733207685614,-746.04,0.00025273,120]
[344017254,1733207685656,-883.74,0.00025273,120]
[344017255,1733207685703,-500.0,0.00025273,120]
[344017256,1733207685742,-1306.73,0.00025273,120]
[344017257,1733207685781,-700.0,0.00025273,120]
[344017258,1733207685819,-500.0,0.00025273,120]
[344017259,1733207685855,-1308.07,0.00025273,120]
[344017260,1733207685893,-704.69,0.00025273,120]
[344017261,1733207685931,-500.0,0.00025273,120]
[344017262,1733207685969,-500.0,0.00025273,120]
[344017263,1733207686008,-500.0,0.00025273,120]
[344017264,1733207686048,-500.0,0.00025273,120]
[344017265,1733207686088,-500.0,0.00025273,120]
[344017266,1733207686126,-500.0,0.00025273,120]
[344017267,1733207686165,-895.49,0.00025273,120]
[344017268,1733207686203,-500.0,0.00025273,120]
[344017269,1733207686257,-500.0,0.00025273,120]
[344017270,1733207686301,-765.68,0.00025273,120]
[344017271,1733207686340,-500.0,0.00025273,120]
[344017272,1733207686380,-968.26,0.00025273,120]
[344017273,1733207686420,-1145.05,0.00025273,120]
[344017274,1733207686459,-892.04,0.00025273,120]
[344017275,1733207686498,-500.0,0.00025273,120]
[344017276,1733207686539,-1022.01,0.00025273,60]
[344017277,1733207686578,-500.0,0.00025273,120]
[344017278,1733207686616,-500.0,0.00025273,120]
[344017279,1733207686657,-1368.93,0.00025273,120]
[344017280,1733207686696,-500.0,0.00025273,120]
[344017281,1733207686735,-500.0,0.00025273,120]
[344017282,1733207686773,-1207.33,0.00025273,120]
[344017283,1733207686811,-759.76,0.00025273,120]
[344017284,1733207686850,-500.0,0.00025273,120]
[344017285,1733207686888,-500.0,0.00025273,120]
[344017286,1733207686927,-625.88,0.00025273,120]
[344017287,1733207686965,-500.0,0.00025273,120]
[344017288,1733207687003,-500.0,0.00025273,120]
[344017289,1733207687051,-500.0,0.00025273,120]
[344017290,1733207687092,-500.0,0.00025273,120]
[344017291,1733207687134,-970.16,0.00025273,120]
[344017292,1733207687177,-500.0,0.00025273,120]
[344017293,1733207687219,-500.0,0.00025273,120]
[344017294,1733207687262,-1166.91,0.00025273,30]
[344017295,1733207687303,-545.32,0.00025273,120]
[344017296,1733207687344,-500.0,0.00025273,120]
[344017297,1733207687385,-500.0,0.00025273,120]
[344017298,1733207687426,-500.0,0.00025273,120]
[344017299,1733207687469,-957.11,0.00025273,120]
[344017300,1733207687510,-500.0,0.00025273,120]
[344017301,1733207687553,-1518.29,0.00025273,120]
[344017302,1733207687597,-500.0,0.00025273,120]
[344017303,1733207687640,-500.0,0.00025273,120]
[344017304,1733207687683,-1803.31,0.00025273,120]
[344017305,1733207687725,-1154.68,0.00025273,120]
[344017306,1733207687769,-1378.39,0.00025273,120]
[344017307,1733207687814,-578.72,0.00025273,120]
[344017308,1733207687855,-500.0,0.00025273,120]
[344017309,1733207687903,-500.0,0.00025273,120]
[344017310,1733207687945,-500.0,0.00025273,120]
[344017311,1733207687987,-1117.49,0.00025273,120]
[344017312,1733207688030,-500.0,0.00025273,120]
[344017313,1733207688075,-500.0,0.00025273,120]
[344017314,1733207688124,-500.0,0.00025273,120]
[344017315,1733207688168,-537.78,0.00025273,120]
[344017316,1733207688209,-500.0,0.00025273,120]
[344017317,1733207688258,-500.0,0.00025273,120]
[344017318,1733207688309,-478.26903496,0.00025273,120]
[344017319,1733207688352,-1029.36,0.00025273,120]
[344017320,1733207688395,-500.0,0.00025273,120]
[344017321,1733207688437,-500.0,0.00025273,120]
[344017322,1733207688478,-500.0,0.00025273,120]
[344017323,1733207688523,-500.0,0.00025273,120]
[344017324,1733207688566,-1082.12,0.00025273,120]
[344017325,1733207688608,-500.0,0.00025273,120]
[344017326,1733207688650,-1233.09,0.00025273,120]
[344017327,1733207688691,-579.80450399,0.00025273,120]
[344017328,1733207688739,-500.0,0.00025273,120]
[344017329,1733207688781,-500.0,0.00025273,120]
[344017330,1733207688822,-1287.37,0.00025273,120]
[344017331,1733207688863,-500.0,0.00025273,120]
[344017332,1733207688904,-500.0,0.00025273,120]
[344017333,1733207688946,-504.69360054,0.00025273,120]
[344017334,1733207688986,-500.0,0.00025273,120]
[344017335,1733207689027,-500.0,0.00025273,120]
[344017336,1733207689069,-500.0,0.00025273,120]
[344017337,1733207689111,-500.0,0.00025273,120]
[344017338,1733207689153,-500.0,0.00025273,120]
[344017339,1733207689194,-500.0,0.00025273,120]
[344017340,1733207689235,-500.0,0.00025273,120]
[344017341,1733207689277,-765.2,0.00025273,120]
[344017342,1733207689318,-500.0,0.00025273,120]
[344017343,1733207689359,-500.0,0.00025273,120]
[344017344,1733207689743,-500.0,0.00025273,120]
[344017345,1733207689784,-500.0,0.00025273,120]
[344017346,1733207689823,-500.0,0.00025273,120]
[344017347,1733207689864,-1311.41,0.00025273,120]
[344017348,1733207689902,-500.0,0.00025273,120]
[344017349,1733207689941,-2061.89,0.00025273,120]
[344017350,1733207689979,-903.7,0.00025273,120]
[344017351,1733207690019,-500.0,0.00025273,120]
[344017352,1733207690059,-683.61,0.00025273,120]
[344017353,1733207690097,-500.0,0.00025273,120]
[344017354,1733207690138,-500.0,0.00025273,120]
[344017355,1733207690177,-500.0,0.00025273,120]
[344017356,1733207690219,-714.04,0.00025273,120]
[344017357,1733207690260,-500.0,0.00025273,120]
[344017358,1733207690301,-841.7,0.00025273,120]
[344017359,1733207690344,-517.62,0.00025273,120]
[344017360,1733207690391,-500.0,0.00025273,120]
[344017361,1733207690433,-500.0,0.00025273,120]
[344017362,1733207690472,-500.0,0.00025273,120]
[344017363,1733207690513,-1160.81,0.00025273,120]
[344017364,1733207690554,-500.0,0.00025273,120]
[344017365,1733207690599,-500.0,0.00025273,120]
[344017366,1733207690639,-500.0,0.00025273,120]
[344017367,1733207690681,-500.0,0.00025273,120]
[344017368,1733207690719,-500.0,0.00025273,120]
[344017369,1733207690761,-510.86818381,0.00025273,120]
[344017370,1733207690803,-500.0,0.00025273,120]
[344017371,1733207690843,-500.0,0.00025273,120]
[344017372,1733207690883,-500.0,0.00025273,120]
[344017373,1733207690922,-500.0,0.00025273,120]
[344017374,1733207690962,-500.0,0.00025273,120]
[344017375,1733207691004,-500.0,0.00025273,120]
[344017376,1733207691045,-500.0,0.00025273,120]
[344017377,1733207691089,-500.0,0.00025273,120]
[344017378,1733207691130,-500.0,0.00025273,120]
[344017379,1733207691171,-500.0,0.00025273,120]
[344017380,1733207691212,-911.18,0.00025273,120]
[344017381,1733207691253,-500.0,0.00025273,120]
[344017382,1733207691295,-500.0,0.00025273,120]
[344017383,1733207691334,-895.63,0.00025273,120]
[344017384,1733207691373,-500.0,0.00025273,120]
[344017385,1733207691412,-500.0,0.00025273,120]
[344017386,1733207691450,-1559.06,0.00025273,120]
[344017387,1733207691489,-581.0,0.00025273,120]
[344017388,1733207691527,-374.128197,0.00025273,120]
[344017389,1733207691566,-631.97,0.00025273,120]
[344017390,1733207691607,-1127.05,0.00025273,120]
[344017391,1733207691646,-500.0,0.00025273,120]
[344017392,1733207691684,-500.0,0.00025273,120]
[344017393,1733207691724,-500.0,0.00025273,120]
[344017394,1733207691762,-748.75,0.00025273,120]
[344017395,1733207691805,-500.0,0.00025273,120]
[344017396,1733207691844,-1024.74,0.00025273,120]
[344017397,1733207691881,-500.0,0.00025273,120]
[344017398,1733207691920,-263.732209,0.00025273,120]
[344017399,1733207691957,-799.79,0.00025273,120]
[344017400,1733207691995,-500.0,0.00025273,120]
[344017401,1733207692035,-1089.52,0.00025273,120]
[344017402,1733207692074,-1274.65,0.00025273,120]
[344017403,1733207692112,-3046.042417,0.00025273,120]
[344017404,1733207692151,-500.0,0.00025273,120]
[344017405,1733207692190,-500.0,0.00025273,120]
[344017406,1733207692228,-524.57,0.00025273,120]
[344017407,1733207692266,-912.68,0.00025273,120]
[344017408,1733207692305,-565.49,0.00025273,120]
[344017409,1733207692344,-500.0,0.00025273,120]
[344017410,1733207692382,-500.0,0.00025273,120]
[344017411,1733207692421,-500.0,0.00025273,120]
[344017412,1733207692459,-810.96,0.00025273,120]
[344017413,1733207692498,-500.0,0.00025273,120]
[344017414,1733207692537,-500.0,0.00025273,120]
[344017415,1733207692577,-2350.25,0.00025273,120]
[344017416,1733207692616,-500.0,0.00025273,120]
[344017417,1733207692654,-500.0,0.00025273,120]
[344017418,1733207692693,-1847.9,0.00025273,120]
[344017419,1733207692731,-837.65,0.00025273,120]
[344017420,1733207692771,-1476.9,0.00025273,120]
[344017421,1733207692811,-500.0,0.00025273,120]
[344017422,1733207692851,-500.0,0.00025273,120]
[344017423,1733207692891,-619.28325569,0.00025273,120]
[344017424,1733207692930,-500.0,0.00025273,120]
[344017425,1733207692970,-1394.476857,0.00025273,120]
[344017426,1733207693009,-500.0,0.00025273,120]
[344017427,1733207693052,-500.0,0.00025273,120]
[344017428,1733207693091,-500.0,0.00025273,120]
[344017429,1733207693130,-500.0,0.00025273,120]
[344017430,1733207693168,-500.0,0.00025273,120]
[344017431,1733207693208,-1059.37,0.00025273,120]
[344017432,1733207693248,-690.97,0.00025273,120]
[344017433,1733207693287,-500.0,0.00025273,120]
[344017434,1733207693327,-2080.48,0.00025273,120]
[344017435,1733207693366,-1265.39,0.00025273,120]
[344017436,1733207693404,-510.1697702,0.00025273,120]
[344017437,1733207693444,-508.75,0.00025273,120]
[344017438,1733207693775,-500.0,0.00025273,120]
[344017439,1733207693815,-500.0,0.00025273,120]
[344017440,1733207693853,-500.0,0.00025273,120]
[344017441,1733207693891,-500.0,0.00025273,120]
[344017442,1733207693931,-500.0,0.00025273,120]
[344017443,1733207693970,-880.67,0.00025273,120]
[344017444,1733207694011,-500.0,0.00025273,120]
[344017445,1733207694054,-500.0,0.00025273,120]
[344017446,1733207694094,-1343.98,0.00025273,120]
[344017447,1733207694133,-500.0,0.00025273,120]
[344017448,1733207694172,-700.97,0.00025273,120]
[344017449,1733207694212,-1429.25,0.00025273,120]
[344017450,1733207694252,-1047.13,0.00025273,120]
[344017451,1733207694291,-761.26,0.00025273,120]
[344017452,1733207694330,-686.85,0.00025273,120]
[344017453,1733207694370,-1674.46,0.00025273,120]
[344017454,1733207694408,-500.0,0.00025273,120]
[344017455,1733207694456,-777.01,0.00025273,120]
[344017456,1733207694499,-500.0,0.00025273,120]
[344017457,1733207694543,-525.14,0.00025273,120]
[344017458,1733207694583,-500.0,0.00025273,120]
[344017459,1733207694626,-500.0,0.00025273,120]
[344017460,1733207694668,-1046.06,0.00025273,120]
[344017461,1733207694710,-1724.28,0.00025273,120]
[344017462,1733207694750,-2081.8,0.00025273,120]
[344017463,1733207694790,-500.0,0.00025273,120]
[344017464,1733207694830,-500.0,0.00025273,120]
[344017465,1733207694871,-1374.03,0.00025273,120]
[344017466,1733207694910,-500.0,0.00025273,120]
[344017467,1733207694950,-500.0,0.00025273,120]
[344017468,1733207694990,-700.49,0.00025273,120]
[344017469,1733207695029,-500.0,0.00025273,120]
[344017470,1733207695070,-500.0,0.00025273,120]
[344017471,1733207695110,-628.18,0.00025273,120]
[344017472,1733207695149,-500.0,0.00025273,120]
[344017473,1733207695190,-1375.39,0.00025273,120]
[344017474,1733207695233,-500.0,0.00025273,120]
[344017475,1733207695278,-500.0,0.00025273,120]
[344017476,1733207695319,-1972.76,0.00025273,120]
[344017477,1733207695368,-677.2,0.00025273,120]
[344017478,1733207695416,-488.34022106,0.00025273,120]
[344017479,1733207695464,-786.11,0.00025273,120]
[344017480,1733207695513,-500.0,0.00025273,120]
[344017481,1733207695558,-347.86947616,0.00025273,120]
[344017482,1733207695602,-500.0,0.00025273,120]
[344017483,1733207695643,-1003.27,0.00025273,120]
[344017484,1733207695683,-1367.81,0.00025273,120]
[344017485,1733207695724,-500.0,0.00025273,120]
[344017486,1733207695765,-500.0,0.00025273,120]
[344017487,1733207695805,-500.0,0.00025273,120]
[344017488,1733207695842,-1727.2,0.00025273,120]
[344017489,1733207695882,-500.0,0.00025273,120]
[344017490,1733207695921,-500.0,0.00025273,120]
[344017491,1733207695962,-550.02,0.00025273,120]
[344017492,1733207696002,-1478.8,0.00025273,120]
[344017493,1733207696045,-701.89,0.00025273,120]
[344017494,1733207696087,-1642.48,0.00025273,120]
[344017495,1733207696127,-1218.04,0.00025273,120]
[344017496,1733207696166,-500.0,0.00025273,120]
[344017497,1733207696207,-500.0,0.00025273,120]
[344017498,1733207696246,-500.0,0.00025273,120]
[344017499,1733207696285,-652.41,0.00025273,120]
[344017500,1733207696323,-500.0,0.00025273,120]
[344017501,1733207696362,-500.0,0.00025273,120]
[344017502,1733207696401,-848.08,0.00025273,120]
[344017503,1733207696439,-500.0,0.00025273,120]